bitfinex/quotes_ETHUSD_20250319
["timestamp","ask_amount","ask_price","bid_price","bid_amount"]
[1742393407890,5.00484,2038.8,2038.7,0.3628]
[1742393408140,20.5755628,2038.8,2038.7,0.3628]
[1742393408314,20.51424403,2038.8,2038.7,0.3628]
[1742393408818,4.77940403,2038.8,2038.7,0.3628]
[1742393408989,15.58840403,2038.8,2038.7,0.3628]
[1742393409493,20.49324403,2038.8,2038.7,0.3628]
[1742393409696,15.58840403,2038.8,2038.7,0.3628]
[1742393409920,20.49324403,2038.8,2038.7,0.3628]
[1742393410119,23.52348643,2038.8,2038.7,0.3628]
[1742393410355,15.58840403,2038.8,2038.7,0.3628]
[1742393410758,20.49324403,2038.8,2038.7,0.3628]
[1742393411256,15.58840403,2038.8,2038.7,0.3628]
[1742393411463,20.49324403,2038.8,2038.7,0.3628]
[1742393411820,0.1,2038.7,2037.9,0.43789248]
[1742393412054,4.77940403,2038.7,2038.5,4.90541]
[1742393412259,0.1,2039.0,2038.0,0.7638]
[1742393412633,0.1,2038.7,2038.5,4.90543]
[1742393412923,0.1,2038.7,2038.6,4.90532]
[1742393413146,0.1,2038.7,2038.6,4.90522]
[1742393413347,0.1,2038.7,2038.4,4.9056]
[1742393413660,0.1,2038.5,2038.4,4.9057]
[1742393413845,4.67940403,2038.6,2038.5,4.90556]
[1742393414035,0.1,2038.4,2038.3,4.90599]
[1742393414239,4.77940403,2038.6,2038.0,0.35150897]
[1742393414438,4.77940403,2038.6,2038.3,4.90587]
[1742393414623,0.1,2038.4,2038.3,4.90604]
[1742393414824,4.67940403,2038.6,2038.2,4.90627]
[1742393415024,0.1,2038.5,2038.3,4.90603]
[1742393415227,0.1,2038.5,2038.3,9.81192]
[1742393415428,0.1,2038.5,2038.4,4.90561]
[1742393415728,0.1,2038.2,2038.1,5.34657847]
[1742393416160,4.77940403,2038.2,2038.0,4.9066]
[1742393416363,10.595,2038.5,2038.4,4.9058]
[1742393416926,4.67940403,2038.8,2038.7,4.90508]
[1742393416927,0.1,2038.8,2038.7,4.90508]
[1742393417864,0.1,2038.6,2038.5,4.90556]
[1742393418059,4.67940403,2038.8,2038.7,4.90508]
[1742393418248,0.1,2038.6,2038.4,0.35376673]
[1742393418566,4.67940403,2038.5,2038.4,0.35376673]
[1742393419439,0.1,2038.6,2038.4,0.35376673]
[1742393419764,0.1,2038.6,2038.5,4.90556]
[1742393420147,0.1,2038.6,2038.4,4.90566]
[1742393420346,10.576,2038.6,2038.5,4.90556]
[1742393420546,0.1,2038.9,2038.8,4.90484]
[1742393420956,0.1,2038.4,2038.1,0.35376673]
[1742393421287,0.1,2038.4,2038.3,4.90604]
[1742393421451,0.1,2038.8,2038.7,4.90495]
[1742393421650,10.453,2039.2,2038.9,4.90443]
[1742393421949,5.71186,2039.3,2038.9,9.80889]
[1742393422296,0.1,2039.4,2039.3,4.90364]
[1742393422649,0.1,2039.4,2039.2,4.90385]
[1742393422942,0.1,2039.4,2039.3,4.90364]
[1742393423381,0.8069,2039.8,2039.5,4.90316]
[1742393423582,0.1,2039.6,2039.4,4.90338]
[1742393423766,0.1,2039.6,2039.4,4.9033]
[1742393424058,0.1,2039.6,2039.5,4.90304]
[1742393425306,15.30489,2040.1,2039.5,10.15959085]
[1742393425307,0.1,2039.8,2039.5,10.15959085]
[1742393425504,0.1,2039.8,2039.6,4.90282]
[1742393425806,0.1,2039.6,2039.5,0.35351085]
[1742393426412,0.1,2039.6,2039.5,5.25667085]
[1742393426597,0.1,2039.8,2039.6,4.90274]
[1742393426917,0.1,2039.8,2039.6,9.80555]
[1742393427101,0.1,2039.6,2039.5,4.90299]
[1742393427409,9.58151403,2040.0,2038.8,4.90482]
[1742393427410,0.1,2039.4,2039.3,4.90354]
[1742393427910,0.1,2039.4,2039.2,4.90367]
[1742393428217,14.48496403,2039.7,2038.8,0.44996458]
[1742393428218,0.1,2039.2,2039.1,4.90396]
[1742393428712,0.1,2039.2,2039.1,4.90412]
[1742393428921,0.1,2039.4,2039.2,4.90374]
[1742393429211,0.1,2039.4,2039.3,4.90364]
[1742393429571,0.1,2039.6,2039.3,4.90364]
[1742393429771,0.1,2039.4,2039.3,4.90364]
[1742393430010,0.1,2039.4,2039.2,9.72007]
[1742393430215,0.1,2039.4,2039.1,0.35351258]
[1742393430423,0.1,2039.2,2039.1,0.35351258]
[1742393430621,5.504259,2039.2,2039.1,0.35351258]
[1742393430785,10.18366303,2039.2,2039.1,0.35351258]
[1742393430990,10.18366303,2039.2,2038.5,0.44996458]
[1742393430991,0.1,2038.7,2038.6,0.44996458]
[1742393432215,5.00508,2038.7,2038.6,0.44996458]
[1742393432422,15.09508,2038.7,2038.6,0.44996458]
[1742393432580,17.5630154,2038.7,2038.6,0.44996458]
[1742393432781,0.1,2038.4,2038.3,0.44254157]
[1742393433087,0.17280208,2038.4,2038.3,0.44254157]
[1742393433314,0.17280208,2038.4,2038.2,4.90627]
[1742393433516,5.07863208,2038.4,2038.1,4.90649]
[1742393433686,0.1,2038.2,2038.0,5.61477651]
[1742393433890,0.1,2038.2,2038.0,0.70806651]
[1742393434089,0.0732754,2038.1,2038.0,5.61483651]
[1742393434612,0.1,2038.2,2038.0,1.06250097]
[1742393434817,0.1,2038.2,2038.0,0.35443446]
[1742393434818,10.65293355,2038.2,2038.0,0.35443446]
[1742393435114,0.07293398,2038.1,2038.0,5.26108446]
[1742393435300,0.07293398,2038.1,2038.0,5.26120446]
[1742393435502,0.1,2038.1,2038.0,5.26120446]
[1742393435833,0.17222016,2038.1,2038.0,0.35443446]
[1742393435983,0.1,2037.8,2037.7,4.90737]
[1742393436314,0.17185968,2037.8,2037.7,4.90737]
[1742393436812,0.17185968,2037.8,2037.7,4.90749]
[1742393436999,0.17185968,2037.8,2037.6,4.9075]
[1742393437202,0.17185968,2037.8,2037.7,4.90749]
[1742393437809,0.07185968,2037.8,2037.7,4.90749]
[1742393437990,0.07185968,2037.8,2037.7,5.0028394]
[1742393438189,0.1,2038.0,2037.9,4.90701]
[1742393438394,0.1,2038.2,2038.1,4.90653]
[1742393438589,9.951,2038.2,2038.1,4.90653]
[1742393438925,9.942,2038.2,2038.1,5.0018794]
[1742393439287,0.1,2038.2,2038.1,5.0018794]
[1742393439483,0.1,2038.4,2038.3,4.90604]
[1742393439802,0.1,2038.4,2038.1,4.90644]
[1742393440032,6.61081796,2038.4,2038.3,0.0953494]
[1742393440232,11.22886443,2038.4,2038.3,0.0953494]
[1742393441350,0.1,2038.4,2038.3,0.0953494]
[1742393441753,9.68520403,2038.4,2038.3,0.0953494]
[1742393443450,0.1,2037.5,2037.4,4.90821]
[1742393444353,0.1,2037.5,2037.2,4.90854]
[1742393444509,0.1,2037.3,2037.2,4.90854]
[1742393444714,0.1,2037.1,2037.0,4.90914]
[1742393446249,0.1,2037.1,2036.9,4.90922]
[1742393446541,0.1,2036.9,2036.8,4.90955]
[1742393446744,0.1,2036.7,2036.6,5.26475726]
[1742393446950,0.1,2036.7,2036.6,9.82005]
[1742393447122,0.1,2036.9,2036.8,4.90966]
[1742393447941,0.1671807,2036.9,2036.8,4.90966]
[1742393449036,0.0671807,2036.9,2036.8,4.90966]
[1742393449362,0.1,2037.0,2036.9,4.90942]
[1742393449569,0.1,2037.5,2037.4,4.90821]
[1742393449727,9.571,2037.5,2037.4,4.90821]
[1742393449923,9.561,2037.5,2037.4,4.90821]
[1742393450346,0.1,2037.5,2037.4,4.90821]
[1742393450546,9.551,2037.5,2037.4,4.90821]
[1742393450964,9.551,2037.5,2037.3,4.90827]
[1742393451166,9.551,2037.5,2037.4,4.90821]
[1742393451474,0.1,2037.9,2037.8,4.90725]
[1742393451623,0.1,2037.7,2037.6,4.90754]
[1742393451964,14.08140403,2038.0,2037.9,4.90701]
[1742393452260,0.1,2038.1,2038.0,4.9067]
[1742393452669,0.1,2038.1,2037.9,4.90689]
[1742393453040,0.1,2038.2,2037.6,4.9077]
[1742393453368,0.1,2038.2,2038.1,4.90643]
[1742393454559,0.1,2037.9,2037.8,4.90722]
[1742393454990,0.1,2037.9,2037.7,4.90748]
[1742393455561,0.1,2037.6,2037.5,4.90781]
[1742393455795,0.1,2037.6,2037.4,4.90808]
[1742393455960,0.1,2037.4,2037.3,4.90843]
[1742393457293,0.1,2037.4,2037.2,4.90854]
[1742393457494,0.1,2037.4,2037.3,4.90845]
[1742393457700,0.1,2037.4,2037.2,9.81721]
[1742393458106,0.1,2037.4,2037.1,4.90887]
[1742393458269,0.1,2037.0,2036.9,4.90939]
[1742393460113,0.1,2037.0,2036.8,4.90957]
[1742393460114,0.1,2037.3,2037.2,4.90869]
[1742393460394,9.237,2037.3,2037.2,4.90869]
[1742393460963,9.137,2037.3,2037.2,4.90869]
[1742393461997,9.237,2037.3,2037.2,4.90869]
[1742393462182,0.1,2037.1,2037.0,4.90915]
[1742393462767,0.16497274,2037.1,2037.0,4.90915]
[1742393463106,0.16497274,2037.1,2036.9,4.9094]
[1742393463258,0.1,2036.9,2036.7,4.90981]
[1742393463464,0.1,2036.7,2036.5,0.44996458]
[1742393463696,9.142,2036.7,2036.6,4.91014]
[1742393464393,0.1,2036.7,2036.6,4.91014]
[1742393464567,0.1,2036.9,2036.8,4.90966]
[1742393464772,9.012,2037.0,2036.9,4.90942]
[1742393467040,0.1,2036.5,2036.4,4.9105]
[1742393467198,0.1,2036.5,2036.3,4.91086]
[1742393467394,0.1,2036.3,2036.2,0.1225524]
[1742393467795,2.0378174,2036.3,2036.2,0.1225524]
[1742393468540,0.1,2036.3,2036.2,5.0336524]
[1742393468895,0.1,2036.3,2036.2,0.1225524]
[1742393469444,5.01086,2036.3,2036.2,0.1225524]
[1742393469798,5.43288267,2036.3,2036.2,0.1225524]
[1742393470050,5.43288267,2036.3,2035.4,4.91302]
[1742393470051,0.1,2035.6,2035.5,4.91273]
[1742393470857,0.1,2035.6,2035.4,9.82594]
[1742393471058,0.1,2035.6,2035.1,0.44582226]
[1742393471059,0.1,2035.6,2035.3,4.91326]
[1742393471278,0.1,2035.6,2035.1,0.44582226]
[1742393471279,0.1,2035.3,2035.1,5.35947226]
[1742393471563,0.1,2035.3,2035.2,4.91352]
[1742393471748,8.909,2035.3,2035.1,5.35947226]
[1742393472136,8.909,2035.3,2035.1,5.35936226]
[1742393472341,8.909,2035.3,2035.1,4.91354]
[1742393472546,8.909,2035.3,2034.8,4.91444]
[1742393472547,0.1,2035.0,2034.9,4.91401]
[1742393474673,0.1,2035.2,2035.1,4.91376]
[1742393474974,0.1,2034.9,2034.8,4.91436]
[1742393475738,0.1,2034.9,2034.7,4.91469]
[1742393475938,8.682,2034.8,2034.7,4.91469]
[1742393476575,0.1,2034.7,2034.6,4.91486]
[1742393476870,0.1,2034.7,2034.2,5.1120086]
[1742393477033,0.1,2034.3,2034.2,5.1120586]
[1742393477650,0.1,2034.3,2034.2,0.1962886]
[1742393477855,8.78550917,2034.3,2034.2,0.1962886]
[1742393478386,13.4649132,2034.3,2034.2,0.1962886]
[1742393478591,0.15450917,2034.3,2034.2,5.1122186]
[1742393478774,0.15450917,2034.3,2034.2,0.1962886]
[1742393478978,8.75650917,2034.3,2034.2,0.1962886]
[1742393479279,13.67219917,2034.3,2034.2,0.1962886]
[1742393479598,20.29158812,2034.3,2034.2,0.1962886]
[1742393480153,4.8339132,2034.3,2034.2,0.1962886]
[1742393480359,18.3126032,2034.3,2034.2,0.1962886]
[1742393480573,13.3969132,2034.3,2034.2,0.1962886]
[1742393481185,18.3126032,2034.3,2034.2,0.1962886]
[1742393481402,13.3969132,2034.3,2034.2,0.1962886]
[1742393481566,21.92385952,2034.3,2034.2,0.1962886]
[1742393481900,0.1,2033.4,2033.3,4.91806]
[1742393482061,8.639,2033.4,2033.3,4.91806]
[1742393482263,8.69175559,2033.4,2033.3,4.91806]
[1742393483004,8.69175559,2033.4,2033.2,4.91824]
[1742393483302,8.69175559,2033.4,2033.3,4.91811]
[1742393483884,0.15275559,2033.4,2033.3,4.91811]
[1742393484209,8.65175559,2033.4,2033.3,4.91811]
[1742393484659,0.1,2033.2,2033.1,4.91853]
[1742393485092,0.14814964,2033.2,2033.1,4.91853]
[1742393485402,0.04814964,2033.2,2033.1,4.91853]
[1742393485711,0.1,2033.5,2033.4,4.91787]
[1742393486002,5.43700403,2034.1,2033.6,4.91738]
[1742393486003,8.562,2033.7,2033.6,4.91738]
[1742393486981,8.544,2033.7,2033.6,4.91738]
[1742393487163,0.1,2033.7,2033.6,4.91738]
[1742393487562,0.1,2034.1,2034.0,4.91642]
[1742393488805,8.407,2034.3,2034.2,4.91593]
[1742393488991,0.1,2034.4,2034.3,4.91569]
[1742393489797,0.1,2034.4,2034.2,4.91593]
[1742393489971,0.1,2034.2,2034.1,4.91606]
[1742393490174,8.381,2034.6,2034.2,4.91585]
[1742393490368,0.1,2034.4,2034.3,4.91569]
[1742393490608,0.1,2034.8,2034.6,4.91484]
[1742393490912,0.1,2034.6,2034.5,4.9152]
[1742393491874,0.1,2034.8,2034.7,4.91472]
[1742393492078,0.1,2034.8,2034.6,4.91488]
[1742393492276,0.1,2034.8,2034.7,4.91472]
[1742393492484,0.1,2034.8,2034.6,4.91488]
[1742393492803,0.1,2034.6,2034.5,4.9152]
[1742393493809,0.1,2034.6,2034.3,4.91558]
[1742393494007,0.1,2034.4,2034.3,4.91558]
[1742393494210,0.1,2034.2,2034.1,4.91607]
[1742393495226,0.825,2034.7,2034.5,4.91521]
[1742393495430,8.372,2034.6,2034.5,4.91521]
[1742393496362,0.1,2034.2,2034.1,4.91617]
[1742393496486,0.1,2034.4,2034.1,4.91617]
[1742393496691,0.1,2034.2,2034.1,4.91617]
[1742393496899,0.1,2034.2,2034.0,4.91629]
[1742393497103,0.1,2034.2,2034.1,4.91617]
[1742393497919,0.1,2034.4,2034.3,4.91569]
[1742393498505,0.1,2034.9,2034.8,4.91441]
[1742393498792,0.1,2034.9,2034.8,4.91448]
[1742393498996,0.8106,2035.0,2034.8,4.91448]
[1742393499214,8.292,2034.9,2034.8,4.91448]
[1742393499418,8.192,2034.9,2034.8,4.91448]
[1742393499624,4.67940403,2035.2,2035.1,4.91376]
[1742393499821,12.95040403,2035.2,2035.1,4.91376]
[1742393500171,8.271,2035.2,2035.0,4.91391]
[1742393500312,8.153,2035.2,2035.1,4.91376]
[1742393500506,4.67940403,2035.5,2035.3,4.91328]
[1742393500751,0.1,2035.3,2035.2,4.91338]
[1742393500952,8.148,2035.4,2035.3,4.91328]
[1742393501152,0.1,2035.4,2035.3,4.91328]
[1742393501449,8.133,2035.4,2035.3,4.91328]
[1742393501609,0.7749,2035.7,2035.3,4.91328]
[1742393501812,4.77940403,2035.5,2035.4,4.91303]
[1742393502015,4.77940403,2035.5,2035.0,5.91520626]
[1742393502016,4.77940403,2035.5,2035.3,4.91319]
[1742393502352,0.1,2035.3,2035.2,9.82687]
[1742393502749,0.1,2035.3,2035.2,4.91337]
[1742393502916,0.1,2035.3,2035.2,4.91352]
[1742393503254,4.63155784,2035.3,2035.1,4.91359]
[1742393503458,0.1,2035.0,2034.9,4.91415]
[1742393503816,0.1,2034.7,2034.5,0.47466719]
[1742393504157,4.53155784,2034.6,2034.5,5.38978719]
[1742393504855,4.53155784,2034.6,2034.5,5.27350908]
[1742393505152,4.70930472,2034.6,2034.5,0.35838908]
[1742393505655,0.1,2034.7,2034.6,4.91497]
[1742393506016,8.055,2034.8,2034.7,4.91472]
[1742393506253,8.088,2036.6,2035.0,5.675]
[1742393506561,4.70930472,2036.2,2035.8,4.91199]
[1742393506739,4.70930472,2035.9,2035.1,4.91376]
[1742393506939,12.79630472,2035.9,2035.7,4.91217]
[1742393507156,12.79630472,2035.9,2035.8,4.91207]
[1742393507360,8.087,2035.9,2035.8,4.91207]
[1742393509361,8.029,2036.0,2035.8,4.9119]
[1742393509516,8.029,2036.0,2035.7,4.91224]
[1742393509718,9.32302,2036.0,2035.7,4.91226]
[1742393509919,12.94059,2036.0,2035.2,3.0]
[1742393510137,17.85238,2036.0,2035.6,4.91253]
[1742393510342,8.029,2036.0,2035.4,4.91301]
[1742393510550,8.029,2036.0,2035.7,4.91227]
[1742393510776,12.94069,2036.0,2035.6,4.91242]
[1742393510974,12.94069,2036.0,2035.0,0.761]
[1742393510975,12.97866,2036.4,2035.2,7.91352]
[1742393511178,4.9118,2036.0,2035.6,4.91246]
[1742393511406,0.7607,2036.0,2035.7,4.9122]
[1742393513251,8.073,2035.9,2035.6,4.91247]
[1742393513654,12.98501,2035.9,2035.5,4.9127]
[1742393513868,17.89703,2035.9,2035.5,4.9127]
[1742393514160,4.91217,2035.8,2035.4,4.91302]
[1742393514394,9.82442,2035.8,2035.4,4.91291]
[1742393514681,7.24891247,2035.8,2035.5,4.91269]
[1742393515079,12.9849,2035.9,2035.5,4.91268]
[1742393515316,12.98498,2035.9,2035.5,4.91266]
[1742393515809,17.89702,2035.9,2035.5,4.91263]
[1742393516013,12.98498,2035.9,2035.5,4.91263]
[1742393516216,12.98498,2035.9,2035.5,9.82527]
[1742393516412,9.82402,2035.9,2035.5,4.91263]
[1742393516709,7.942,2035.8,2035.5,4.91263]
[1742393516917,7.942,2035.8,2035.2,9.827]
[1742393517079,7.942,2035.8,2035.6,4.91247]
[1742393517680,7.942,2035.8,2035.5,4.91277]
[1742393518017,7.908,2035.9,2035.6,4.91241]
[1742393518410,7.908,2035.9,2035.0,5.67487]
[1742393518411,7.908,2035.9,2035.8,4.91207]
[1742393518584,4.492819,2035.8,2035.7,4.91228]
[1742393518777,7.908,2035.9,2035.7,9.8245]
[1742393519131,0.7607,2036.0,2035.8,4.91207]
[1742393519330,7.868,2035.9,2035.8,4.91207]
[1742393519885,7.851,2036.0,2035.8,4.91204]
[1742393520117,7.851,2036.0,2035.7,4.91221]
[1742393520326,4.91135,2036.1,2035.5,4.91261]
[1742393520525,16.988,2036.2,2035.9,4.9117]
[1742393520893,7.84,2036.4,2036.2,4.91108]
[1742393521206,5.68629,2036.7,2036.5,4.91037]
[1742393521207,7.836,2036.6,2036.5,4.91037]
[1742393521602,7.829,2036.6,2036.5,9.8206]
[1742393521848,7.829,2036.6,2036.5,4.91023]
[1742393522209,4.70930472,2036.9,2036.6,4.91005]
[1742393522518,7.812,2036.8,2036.6,4.91005]
[1742393522723,2.245,2036.6,2036.5,4.91026]
[1742393522929,12.72168,2036.8,2036.4,4.91054]
[1742393523130,16.24219847,2036.8,2036.3,4.91085]
[1742393523443,4.9108,2036.4,2036.0,4.91156]
[1742393523612,12.74842357,2036.3,2035.9,4.91181]
[1742393523813,12.74842357,2036.3,2035.7,4.9122]
[1742393523814,9.82254,2036.2,2035.8,4.91206]
[1742393524047,4.91121,2036.2,2035.8,4.91192]
[1742393524252,12.48530472,2036.3,2036.0,4.9115]
[1742393524536,5.69455,2036.4,2036.0,4.9115]
[1742393524537,7.755,2036.2,2036.1,4.91117]
[1742393526262,7.741,2036.3,2035.9,4.91163]
[1742393526403,12.65202,2036.3,2035.9,4.91173]
[1742393526741,7.732,2036.2,2036.0,4.91149]
[1742393527116,7.732,2036.2,2036.0,4.91144]
[1742393527303,7.732,2036.2,2036.1,4.91135]
[1742393527551,0.8113,2037.8,2036.4,4.91062]
[1742393527836,4.52644218,2037.2,2036.9,4.9093]
[1742393528039,9.43571218,2037.0,2036.6,4.90998]
[1742393528247,9.43610218,2036.8,2036.5,4.91024]
[1742393528412,4.52644218,2036.6,2036.4,4.91054]
[1742393528743,9.43670218,2036.6,2036.2,5.35758676]
[1742393528904,9.43659218,2036.6,2036.2,5.35764676]
[1742393529100,4.52644218,2036.6,2036.3,4.91075]
[1742393529329,4.52644218,2036.6,2036.4,4.91053]
[1742393529542,4.52644218,2036.6,2036.4,4.9105]
[1742393529706,4.52644218,2036.6,2036.3,4.91074]
[1742393529906,4.52644218,2036.6,2036.2,4.91108]
[1742393530216,4.52644218,2036.6,2036.4,4.91053]
[1742393530545,4.52644218,2036.6,2036.4,4.91046]
[1742393530755,4.52644218,2036.6,2036.4,4.91053]
[1742393530951,5.6286388,2036.6,2036.1,4.91111]
[1742393531114,7.662,2036.5,2036.2,4.91101]
[1742393531314,4.52644218,2036.4,2036.2,4.9109]
[1742393531530,7.682,2036.7,2036.4,4.91042]
[1742393531724,4.52644218,2036.8,2035.9,0.8099]
[1742393531923,7.674,2036.7,2036.6,4.91002]
[1742393532139,7.674,2036.7,2036.5,4.91036]
[1742393532817,7.674,2036.7,2036.4,4.91062]
[1742393533161,4.91054,2036.5,2036.1,4.91128]
[1742393533323,9.43663218,2036.6,2036.2,4.91096]
[1742393533532,14.29492122,2036.7,2036.5,4.91029]
[1742393533533,7.674,2036.7,2036.5,4.91029]
[1742393533852,7.674,2036.7,2036.6,4.91014]
[1742393534213,7.674,2036.7,2036.4,9.82103]
[1742393534414,7.674,2036.7,2036.6,4.91014]
[1742393534651,7.674,2036.7,2036.1,4.9113]
[1742393534652,7.617,2036.9,2036.7,4.90974]
[1742393534959,12.13744218,2037.0,2036.7,4.90974]
[1742393535264,4.52644218,2037.0,2036.7,4.90974]
[1742393535550,7.596,2036.9,2036.8,4.90966]
[1742393535754,7.596,2036.9,2036.7,4.90974]
[1742393536259,12.10844218,2037.5,2036.9,4.90924]
[1742393536419,4.52644218,2037.3,2036.7,0.8149]
[1742393536951,12.10844218,2037.5,2037.3,4.90829]
[1742393537162,17.00543218,2037.5,2037.1,4.90886]
[1742393537319,4.52644218,2037.7,2036.7,1.18397269]
[1742393537513,0.8053,2038.0,2037.1,4.90887]
[1742393537514,9.43455218,2037.5,2037.1,4.90887]
[1742393537756,4.90903,2037.1,2036.7,0.8149]
[1742393537920,12.07544218,2037.1,2036.8,4.90963]
[1742393538341,12.07544218,2037.1,2036.8,4.90949]
[1742393538541,16.98439218,2037.1,2036.4,4.91059]
[1742393538746,16.98439218,2037.1,2036.8,4.90964]
[1742393538945,4.52644218,2036.9,2036.4,0.8188]
[1742393539150,9.43603218,2036.9,2036.5,4.91024]
[1742393539355,9.43603218,2036.9,2036.5,4.91036]
[1742393539356,14.34568218,2036.9,2036.5,4.91036]
[1742393539652,14.34568218,2036.9,2036.4,4.91047]
[1742393539653,4.52644218,2036.7,2036.4,4.91047]
[1742393539851,7.511,2036.6,2036.4,4.91058]
[1742393540058,7.511,2036.6,2036.3,4.91086]
[1742393540059,4.52644218,2036.5,2036.3,4.91086]
[1742393540284,2.18932522,2037.1,2036.1,1.58819672]
[1742393540482,9.43619218,2036.8,2036.4,4.91057]
[1742393540982,4.52644218,2036.6,2036.3,4.91076]
[1742393541276,9.43659218,2036.6,2036.3,4.91083]
[1742393541498,7.474,2036.5,2036.3,9.82159]
[1742393541644,7.474,2036.5,2036.3,4.91076]
[1742393541845,7.474,2036.5,2036.3,4.91071]
[1742393542183,4.52644218,2036.8,2036.2,0.04805167]
[1742393542482,9.43666218,2036.6,2036.2,4.91108]
[1742393542784,4.52644218,2036.4,2036.1,4.91119]
[1742393542955,9.43720218,2036.4,2036.0,4.91149]
[1742393543151,4.52644218,2036.4,2036.1,4.91128]
[1742393543541,9.43706218,2036.4,2036.1,4.91128]
[1742393543741,4.52644218,2036.2,2035.8,4.91194]
[1742393544089,4.52644218,2036.0,2035.7,4.9122]
[1742393544287,4.52644218,2036.0,2035.7,4.91221]
[1742393544449,4.52644218,2036.0,2035.7,4.91215]
[1742393545092,9.43813218,2036.0,2035.6,4.91255]
[1742393545303,4.52644218,2035.8,2035.5,4.91277]
[1742393545696,9.43852218,2035.8,2035.5,4.91277]
[1742393545875,4.52644218,2035.8,2035.4,4.913]
[1742393546074,9.43861218,2035.8,2035.5,4.91277]
[1742393546289,4.91237,2035.7,2035.4,4.913]
[1742393546500,12.29058,2035.6,2035.3,4.91325]
[1742393546689,4.91289,2035.5,2035.1,6.49729841]
[1742393546859,4.52644218,2035.2,2035.1,0.80651841]
[1742393547058,9.43996218,2035.2,2035.1,0.80651841]
[1742393547774,4.91497,2034.6,2034.5,0.47466719]
[1742393547977,12.32440925,2034.6,2034.3,0.35923802]
[1742393548178,4.52644218,2034.5,2034.3,5.27490802]
[1742393548511,7.348,2034.6,2034.3,0.35923802]
[1742393548673,7.338,2035.0,2034.8,4.91448]
[1742393548865,7.338,2035.0,2034.6,4.91482]
[1742393549165,7.337,2035.0,2034.9,4.91424]
[1742393549980,7.337,2035.0,2034.8,4.91439]
[1742393550181,7.337,2035.0,2034.8,4.91434]
[1742393550381,7.337,2035.0,2034.9,4.91424]
[1742393550579,7.337,2035.0,2034.5,0.7912]
[1742393550779,4.52644218,2034.9,2034.6,4.91474]
[1742393550967,4.52644218,2034.9,2034.7,4.91449]
[1742393551173,9.44070218,2034.9,2034.6,4.91496]
[1742393551412,9.44070218,2034.9,2034.2,6.73986964]
[1742393551413,4.52644218,2034.9,2034.7,4.91464]
[1742393551709,9.44073218,2034.9,2034.5,4.9152]
[1742393551910,9.44073218,2034.9,2034.2,6.73986964]
[1742393551911,4.52644218,2034.7,2034.3,4.91568]
[1742393552073,4.52644218,2034.7,2034.4,9.83075]
[1742393552406,4.52644218,2034.7,2034.3,4.91567]
[1742393552603,9.44130218,2034.7,2034.3,4.91567]
[1742393552833,9.44130218,2034.7,2034.3,4.91559]
[1742393553016,9.44130218,2034.7,2034.3,9.83111]
[1742393553219,4.52644218,2034.7,2034.4,4.91532]
[1742393553592,7.259,2034.7,2034.5,4.91504]
[1742393553796,7.259,2034.7,2034.2,4.91591]
[1742393554010,7.259,2034.7,2034.5,4.91509]
[1742393554231,7.259,2034.7,2034.6,4.91497]
[1742393554393,11.78544218,2034.7,2034.5,4.91514]
[1742393554917,11.78544218,2034.7,2034.5,4.91512]
[1742393555232,11.78544218,2034.7,2034.4,4.91544]
[1742393555395,11.78544218,2034.7,2034.3,4.9155]
[1742393555396,18.61583372,2034.7,2034.3,9.83102]
[1742393555595,11.78544218,2034.7,2034.1,4.91617]
[1742393555905,11.78544218,2034.7,2034.6,4.91497]
[1742393555906,7.259,2034.7,2034.6,4.91497]
[1742393556103,5.30454218,2034.9,2034.6,4.91497]
[1742393556297,7.214,2034.8,2034.6,4.91497]
[1742393556629,4.52644218,2035.1,2034.9,4.91421]
[1742393556932,7.197,2035.0,2034.9,4.91407]
[1742393558129,4.52644218,2035.5,2035.2,4.91334]
[1742393558321,7.173,2035.4,2035.2,4.91333]
[1742393558517,12.08617,2035.4,2035.0,4.91392]
[1742393558821,9.50114953,2035.3,2034.9,4.91424]
[1742393559135,9.44034218,2035.1,2034.7,4.91463]
[1742393559290,4.52644218,2035.1,2034.8,4.91447]
[1742393559692,4.52644218,2035.1,2034.8,4.91434]
[1742393559939,4.52644218,2035.1,2034.8,4.91439]
[1742393560134,4.52644218,2035.1,2034.8,4.91438]
[1742393560428,4.52644218,2035.1,2034.8,4.91446]
[1742393560731,4.91446,2034.8,2034.7,9.82924]
[1742393560906,7.152,2034.8,2034.6,4.91489]
[1742393561107,7.152,2034.8,2034.7,4.91472]
[1742393561796,7.113,2035.0,2034.9,4.91424]
[1742393563832,7.075,2035.3,2035.2,4.91341]
[1742393564398,5.28314218,2035.6,2035.4,4.91294]
[1742393564606,7.067,2035.5,2035.3,4.91324]
[1742393564805,4.52644218,2035.4,2035.2,4.91352]
[1742393565004,4.52644218,2035.4,2035.2,4.91337]
[1742393565214,7.067,2035.5,2035.2,4.91337]
[1742393565436,7.067,2035.5,2035.3,4.91319]
[1742393565622,7.067,2035.5,2035.3,9.82636]
[1742393565823,7.067,2035.5,2035.4,4.91303]
[1742393566353,7.03,2035.5,2035.4,4.91303]
[1742393566555,7.03,2035.5,2035.4,9.82589]
[1742393567231,7.03,2035.5,2035.4,4.91286]
[1742393567629,4.52644218,2035.8,2035.7,4.91231]
[1742393567842,9.82462,2035.7,2035.2,4.91352]
[1742393568047,4.52644218,2035.6,2035.4,4.91288]
[1742393568247,4.52644218,2035.6,2035.3,4.91327]